fUSD/lending_fUSD_20260502
["ID","MTS","AMOUNT","RATE_DAILY","PERIOD"]
[421457558,1777699844000,-150.0,0.00029534,2]
[421457551,1777699844000,-198.332911,0.00029534,7]
[421457549,1777699844000,-153.167408,0.00029534,7]
[421457548,1777699844000,-156.9,0.00029232,7]
[421457553,1777699844000,-198.332911,0.00029534,7]
[421457542,1777699844000,-157.05,0.00029145,30]
[421457552,1777699844000,-198.332911,0.00029534,7]
[421457543,1777699844000,-156.86,0.00029145,30]
[421457528,1777699844000,-198.332911,0.0002887,7]
[421457540,1777699844000,-157.05,0.00029102,7]
[421457556,1777699844000,-151.0,0.00029534,7]
[421457526,1777699844000,-198.332911,0.0002887,7]
[421457527,1777699844000,-198.332911,0.0002887,7]
[421457529,1777699844000,-198.332911,0.0002887,7]
[421457530,1777699844000,-157.05,0.00028884,30]
[421457531,1777699844000,-156.86,0.00028884,30]
[421457539,1777699844000,-156.86,0.00029058,2]
[421457532,1777699844000,-156.86,0.00028927,2]
[421457533,1777699844000,-157.05,0.00028928,2]
[421457536,1777699844000,-156.86,0.00029014,30]
[421457541,1777699844000,-156.86,0.00029102,7]
[421457535,1777699844000,-156.86,0.00028971,7]
[421457537,1777699844000,-157.05,0.00029015,30]
[421457538,1777699844000,-157.05,0.00029058,2]
[421457534,1777699844000,-157.05,0.00028971,7]
[421457550,1777699844000,-198.332911,0.00029534,7]
[421457568,1777699844000,-150.0,0.000306,7]
[421457560,1777699844000,-1051.49095884,0.00029534,5]
[421457559,1777699844000,-1075.58404978,0.00029534,5]
[421457591,1777699844000,-3296.92540427,0.00031903,2]
[421457589,1777699844000,-1238.63780192,0.000316,2]
[421457590,1777699844000,-1015.07,0.00031825,7]
[421457588,1777699844000,-1238.63780192,0.000316,2]
[421457586,1777699844000,-408.0,0.0003157,120]
[421457582,1777699844000,-153.0,0.00031123,30]
[421457584,1777699844000,-151.0,0.00031409,7]
[421457587,1777699844000,-1238.63780192,0.000316,2]
[421457583,1777699844000,-2000.0,0.00031291,2]
[421457585,1777699844000,-158.0,0.0003157,120]
[421457580,1777699844000,-158.0,0.00031123,30]
[421457574,1777699844000,-154.0,0.00031123,30]
[421457575,1777699844000,-154.0,0.00031123,30]
[421457578,1777699844000,-153.0,0.00031123,30]
[421457581,1777699844000,-151.0,0.00031123,30]
[421457576,1777699844000,-154.0,0.00031123,30]
[421457563,1777699844000,-1148.53643103,0.00029534,5]
[421457562,1777699844000,-1021.14237024,0.00029534,5]
[421457564,1777699844000,-1065.50761809,0.00029534,5]
[421457579,1777699844000,-157.0,0.00031123,30]
[421457565,1777699844000,-1040.68364856,0.00029534,5]
[421457561,1777699844000,-1010.63480359,0.00029534,5]
[421457566,1777699844000,-1335.29959947,0.00029534,5]
[421457567,1777699844000,-150.0,0.000306,7]
[421457570,1777699844000,-185.14,0.00030865,2]
[421457569,1777699844000,-786.44,0.00030841,120]
[421457571,1777699844000,-150.0,0.00031011,2]
[421457573,1777699844000,-154.0,0.00031123,30]
[421457572,1777699844000,-159.0,0.00031123,30]
[421457592,1777699844000,-6443.9844399,0.00031903,2]
[421457577,1777699844000,-151.0,0.00031123,30]
[421457593,1777699845000,-464.504,0.00031903,2]
[421457602,1777699846000,-756.0,0.00029273,4]
[421457598,1777699846000,-756.0,0.00028205,3]
[421457600,1777699846000,-156.73,0.00028709,7]
[421457595,1777699846000,-756.0,0.00027137,2]
[421457599,1777699846000,-156.73,0.00028666,2]
[421457596,1777699846000,-173.27452614,0.00027671,2]
[421457604,1777699846000,-384.00384143,0.00029807,4]
[421457597,1777699846000,-582.72547386,0.00027671,2]
[421457605,1777699846000,-756.0,0.00030341,5]
[421457611,1777699846000,-4711.75281942,0.00031903,2]
[421457603,1777699846000,-371.99615857,0.00029807,4]
[421457601,1777699846000,-756.0,0.00028739,3]
[421457606,1777699846000,-756.0,0.00030875,6]
[421457608,1777699846000,-5898.15862279,0.00031903,2]
[421457610,1777699846000,-156.73,0.00028753,30]
[421457609,1777699846000,-1121.17673242,0.00031903,2]
[421457612,1777699846000,-462.31375,0.00031903,2]
[421457613,1777699846000,-253.52,0.00031903,2]
[421457607,1777699846000,-756.0,0.00031409,6]
[421457620,1777699904000,3009.98,0.00030137,120]
[421457623,1777700204000,160.01,0.00026528,120]
[421457624,1777700631000,151.32,0.00012,2]
[421457626,1777700753000,-42.40142018,0.0002,2]
[421457625,1777700753000,-250.0,0.00013,2]
[421457648,1777701038000,-237.19324307,0.00023801,2]
[421457650,1777701038000,-355.787,0.00023814,5]
[421457646,1777701038000,-151.0,0.00023801,2]
[421457644,1777701038000,-633.7855151,0.000238,2]
[421457645,1777701038000,-151.0,0.00023801,2]
[421457647,1777701038000,-151.0,0.00023801,2]
[421457638,1777701038000,-151.0,0.00021,2]
[421457643,1777701038000,-162.41759262,0.00023237,2]
[421457641,1777701038000,-162.0,0.00023,7]
[421457639,1777701038000,-151.0,0.00022,2]
[421457640,1777701038000,-277.84397213,0.0002235,2]
[421457637,1777701038000,-151.0,0.0002,2]
[421457642,1777701038000,-151.0,0.00023,2]
[421457662,1777701038000,-643.31408011,0.00023814,2]
[421457649,1777701038000,-815.0,0.00023813,2]
[421457663,1777701038000,-13791.0065752,0.00023815,2]
[421457652,1777701038000,-500.0,0.00023814,2]
[421457665,1777701038000,-829.67010334,0.00023815,2]
[421457664,1777701038000,-48993.48432967,0.00023815,2]
[421457657,1777701038000,-500.0,0.00023814,2]
[421457653,1777701038000,-500.0,0.00023814,2]
[421457656,1777701038000,-583.59006729,0.00023814,2]
[421457666,1777701038000,-380.52932165,0.00023815,2]
[421457658,1777701038000,-253.50374459,0.00023814,2]
[421457659,1777701038000,-500.0,0.00023814,2]
[421457654,1777701038000,-500.0,0.00023814,2]
[421457661,1777701038000,-500.0,0.00023814,2]
[421457655,1777701038000,-500.0,0.00023814,2]
[421457651,1777701038000,-150.0,0.00023814,2]
[421457660,1777701038000,-500.0,0.00023814,2]
[421457668,1777701040000,-299.54,0.00023815,2]
[421457667,1777701040000,-252.82313812,0.00023815,2]
[421457681,1777701043000,-7322.22259644,0.00023815,2]
[421457682,1777701043000,-1774.34053604,0.00023815,2]
[421457688,1777701046000,-4752.18412181,0.00023815,2]
[421457687,1777701046000,-5570.45453968,0.00023815,2]
[421457685,1777701046000,-3984.31884261,0.00023815,2]
[421457695,1777701271000,1210.0,0.00030137,120]
[421457696,1777701338000,314.57,0.00024821,120]
[421457697,1777701339000,314.57,0.00027924,120]
[421457698,1777701946000,-223.49,0.000135,2]
[421457700,1777701946000,-292.72203597,0.0001475,2]
[421457701,1777701946000,-160.0,0.00014839,2]
[421457702,1777701946000,-640.82356177,0.0001485,2]
[421457699,1777701946000,-315.62180466,0.000135,2]
[421457703,1777702051000,-343.12398976,0.0001485,2]
[421457704,1777702071000,500.0,0.00029452,120]
[421457733,1777702232000,-1049.24108504,0.00022562,2]
[421457731,1777702232000,-737.26849611,0.00022562,2]
[421457732,1777702232000,-2490.57914543,0.00022562,2]
[421457734,1777702232000,-1149.99016759,0.00022562,2]
[421457735,1777702232000,-1512.86999631,0.00022562,2]
[421457736,1777702232000,-1694.65110952,0.00022562,2]
[421457737,1777702232000,-954.34889048,0.00022562,2]
[421457741,1777702232000,-160.01,0.00023142,2]
[421457738,1777702232000,-717.28110952,0.00022562,2]
[421457744,1777702232000,-2000.0,0.00023372,2]
[421457740,1777702232000,-156.0,0.00023,2]
[421457745,1777702232000,-160.0,0.00023555,2]
[421457747,1777702232000,-300.0,0.00023813,2]
[421457746,1777702232000,-1000.0,0.00023771,2]
[421457750,1777702232000,-500.0,0.00023814,2]
[421457748,1777702232000,-500.0,0.00023814,2]
[421457753,1777702232000,-1252.45307227,0.00023814,2]
[421457751,1777702232000,-1718.15,0.00023814,2]
[421457739,1777702232000,-196.57,0.00022793,2]
[421457730,1777702232000,-159.25343167,0.00022407,2]
[421457716,1777702232000,-815.0,0.00020655,2]
[421457729,1777702232000,-75.19960809,0.00022407,2]
[421457709,1777702232000,-770.0,0.00018855,2]
[421457711,1777702232000,-1200.0,0.00018855,2]
[421457710,1777702232000,-300.0,0.00018855,2]
[421457712,1777702232000,-5013.02287851,0.00018856,2]
[421457714,1777702232000,-156.0,0.0002,2]
[421457713,1777702232000,-5003.11712149,0.00018856,2]
[421457752,1777702232000,-465.69692773,0.00023814,2]
[421457715,1777702232000,-162.41759262,0.00020651,2]
[421457717,1777702232000,-99.83993064,0.00020741,2]
[421457719,1777702232000,-67.33478679,0.00020741,2]
[421457718,1777702232000,-516.66521321,0.00020741,2]
[421457720,1777702232000,-235.2151225,0.00020741,2]
[421457721,1777702232000,-1476.01505371,0.00020951,2]
[421457722,1777702232000,-413.48160874,0.00020951,2]
[421457724,1777702232000,-156.0,0.00021,2]
[421457725,1777702232000,-98.28856215,0.00022,2]
[421457723,1777702232000,-49.59333755,0.00020951,2]
[421457727,1777702232000,-156.0,0.00022,2]
[421457726,1777702232000,-63.71143785,0.00022,2]
[421457728,1777702232000,-197.80039191,0.00022407,2]
[421457754,1777702232000,-9.89292773,0.00023815,2]
[421457743,1777702232000,-200.0,0.00023219,2]
[421457756,1777702232000,-5172.50795729,0.00023853,2]
[421457782,1777702232000,-500.0,0.00023953,2]
[421457783,1777702232000,-500.0,0.00023953,2]
[421457784,1777702232000,-500.0,0.00023953,2]
[421457785,1777702232000,-335.14617501,0.00023953,2]
[421457787,1777702232000,-500.0,0.00023953,2]
[421457786,1777702232000,-243.33193763,0.00023953,2]
[421457792,1777702232000,-346.696407,0.00023953,2]
[421457788,1777702232000,-526.05112338,0.00023953,2]
[421457790,1777702232000,-346.696407,0.00023953,2]
[421457791,1777702232000,-346.696407,0.00023953,2]
[421457793,1777702232000,-346.696407,0.00023953,2]
[421457789,1777702232000,-342.99422403,0.00023953,2]
[421457794,1777702232000,-556.155722,0.00023953,2]
[421457796,1777702232000,-556.155722,0.00023953,2]
[421457795,1777702232000,-556.155722,0.00023953,2]
[421457798,1777702232000,-151.0,0.00023953,2]
[421457797,1777702232000,-556.155722,0.00023953,2]
[421457799,1777702232000,-155.307268,0.00023953,2]
[421457755,1777702232000,-143.10707227,0.00023815,2]
[421457781,1777702232000,-267.94959475,0.00023953,2]
[421457778,1777702232000,-2907.10316565,0.00023953,2]
[421457777,1777702232000,-606.11116589,0.00023953,2]
[421457779,1777702232000,-197.18994588,0.00023953,2]
[421457757,1777702232000,-3756.7725,0.00023854,2]
[421457758,1777702232000,-33114.2544,0.00023854,2]
[421457759,1777702232000,-2000.0,0.00023854,2]
[421457763,1777702232000,-150.0,0.00023881,2]
[421457761,1777702232000,-1378.42891064,0.00023854,2]
[421457760,1777702232000,-2500.0,0.00023854,2]
[421457762,1777702232000,-200.0,0.00023881,2]
[421457766,1777702232000,-500.0,0.00023952,2]
[421457780,1777702232000,-500.0,0.00023953,2]
[421457764,1777702232000,-1852.42,0.0002389,2]
[421457768,1777702232000,-500.0,0.00023952,2]
[421457767,1777702232000,-348.76213465,0.00023952,2]
[421457769,1777702232000,-500.0,0.00023952,2]
[421457771,1777702232000,-500.0,0.00023952,2]
[421457770,1777702232000,-500.0,0.00023952,2]
[421457772,1777702232000,-377.81862711,0.00023952,2]
[421457773,1777702232000,-500.0,0.00023952,2]
[421457774,1777702232000,-500.0,0.00023952,2]
[421457775,1777702232000,-454.66572892,0.00023952,2]
[421457776,1777702232000,-500.0,0.00023952,2]
[421457765,1777702232000,-196.57,0.00023932,2]
[421457802,1777702233000,-15639.58202603,0.00023954,2]
[421457800,1777702233000,-112747.30645034,0.00023954,2]
[421457804,1777702233000,-5385.33927428,0.00023954,2]
[421457801,1777702233000,-385.00293256,0.00023954,2]
[421457803,1777702233000,-500.0,0.00023952,2]
[421457809,1777702233000,-2200.41564869,0.00023954,2]
[421457805,1777702233000,-313.02983907,0.00023954,2]
[421457807,1777702233000,-500.0,0.00023952,2]
[421457808,1777702233000,-500.0,0.00023952,2]
[421457811,1777702233000,-700.37599953,0.00023954,2]
[421457810,1777702233000,-15991.79150603,0.00023954,2]
[421457806,1777702233000,-1216.57072602,0.00023954,2]
[421457829,1777702238000,-500.0,0.00023952,2]
[421457833,1777702238000,-500.0,0.00023952,2]
[421457836,1777702238000,-500.0,0.00023952,2]
[421457834,1777702238000,-500.0,0.00023952,2]
[421457835,1777702238000,-500.0,0.00023952,2]
[421457838,1777702238000,-500.0,0.00023952,2]
[421457837,1777702238000,-500.0,0.00023952,2]
[421457839,1777702238000,-500.0,0.00023952,2]
[421457828,1777702238000,-500.0,0.00023952,2]
[421457842,1777702238000,-500.0,0.00023952,2]
[421457848,1777702238000,-500.0,0.00023952,2]
[421457843,1777702238000,-500.0,0.00023952,2]
[421457841,1777702238000,-500.0,0.00023952,2]
[421457845,1777702238000,-500.0,0.00023952,2]
[421457847,1777702238000,-500.0,0.00023952,2]
[421457840,1777702238000,-500.0,0.00023952,2]
[421457831,1777702238000,-500.0,0.00023952,2]
[421457830,1777702238000,-500.0,0.00023952,2]
[421457827,1777702238000,-500.0,0.00023952,2]
[421457813,1777702238000,-500.0,0.00023952,2]
[421457812,1777702238000,-500.0,0.00023952,2]
[421457815,1777702238000,-500.0,0.00023952,2]
[421457821,1777702238000,-500.0,0.00023952,2]
[421457814,1777702238000,-500.0,0.00023952,2]
[421457816,1777702238000,-500.0,0.00023952,2]
[421457817,1777702238000,-500.0,0.00023952,2]
[421457818,1777702238000,-500.0,0.00023952,2]
[421457819,1777702238000,-26.75,0.00023952,2]
[421457822,1777702238000,-500.0,0.00023952,2]
[421457820,1777702238000,-473.25,0.00023952,2]
[421457846,1777702238000,-500.0,0.00023952,2]
[421457825,1777702238000,-500.0,0.00023952,2]
[421457824,1777702238000,-500.0,0.00023952,2]
[421457826,1777702238000,-587.37777265,0.00023952,2]
[421457832,1777702238000,-500.0,0.00023952,2]
[421457844,1777702238000,-500.0,0.00023952,2]
[421457823,1777702238000,-500.0,0.00023952,2]
[421457849,1777702238000,-500.0,0.00023952,2]
[421457867,1777702238000,-556.155722,0.00023954,2]
[421457873,1777702238000,-156.0,0.00024,2]
[421457872,1777702238000,-317.0,0.00023954,7]
[421457878,1777702238000,-237.19324307,0.0002404,2]
[421457876,1777702238000,-151.0,0.0002404,2]
[421457875,1777702238000,-151.0,0.0002404,2]
[421457877,1777702238000,-151.0,0.0002404,2]
[421457882,1777702238000,-380.52932165,0.00024054,2]
[421457879,1777702238000,-1338.4218929,0.00024054,2]
[421457881,1777702238000,-829.67010334,0.00024054,2]
[421457880,1777702238000,-3150.5278253,0.00024054,2]
[421457884,1777702238000,-38705.1093591,0.00024054,2]
[421457886,1777702238000,-3957.0,0.00024054,2]
[421457889,1777702238000,-4636.4,0.00024054,2]
[421457850,1777702238000,-500.0,0.00023952,2]
[421457870,1777702238000,-556.155722,0.00023954,2]
[421457868,1777702238000,-556.155722,0.00023954,2]
[421457874,1777702238000,-819.0,0.00024025,10]
[421457865,1777702238000,-346.696407,0.00023954,2]
[421457869,1777702238000,-556.155722,0.00023954,2]
[421457853,1777702238000,-500.0,0.00023952,2]
[421457857,1777702238000,-14175.006,0.00023954,2]
[421457854,1777702238000,-2366.84510062,0.00023954,2]
[421457855,1777702238000,-22971.44179011,0.00023954,2]
[421457852,1777702238000,-500.0,0.00023952,2]
[421457859,1777702238000,-151.0,0.00023954,2]
[421457858,1777702238000,-151.0,0.00023954,2]
[421457851,1777702238000,-500.0,0.00023952,2]
[421457856,1777702238000,-22852.86100672,0.00023954,2]
[421457862,1777702238000,-151.0,0.00023954,2]
[421457861,1777702238000,-151.0,0.00023954,2]
[421457864,1777702238000,-346.696407,0.00023954,2]
[421457863,1777702238000,-346.696407,0.00023954,2]
[421457866,1777702238000,-346.696407,0.00023954,2]
[421457871,1777702238000,-1128.06584568,0.00023954,2]
[421457860,1777702238000,-151.0,0.00023954,2]
[421457927,1777702239000,-157.54470453,0.00025,2]
[421457923,1777702239000,-1000.0,0.00024658,2]
[421457918,1777702239000,-556.155722,0.00024054,2]
[421457922,1777702239000,-556.155722,0.00024054,2]
[421457914,1777702239000,-346.696407,0.00024054,2]
[421457912,1777702239000,-346.696407,0.00024054,2]
[421457910,1777702239000,-346.696407,0.00024054,2]
[421457908,1777702239000,-346.696407,0.00024054,2]
[421457897,1777702239000,-151.0,0.00024054,2]
[421457904,1777702239000,-151.0,0.00024054,2]
[421457893,1777702239000,-9522.0456619,0.00024054,2]
[421457906,1777702239000,-151.0,0.00024054,2]
[421457891,1777702239000,-7817.52135171,0.00024054,2]
[421457905,1777702239000,-151.0,0.00024054,2]
[421457902,1777702239000,-151.0,0.00024054,2]
[421457900,1777702239000,-151.0,0.00024054,2]
[421457895,1777702239000,-739.9009931,0.00024054,2]
[421457916,1777702239000,-556.155722,0.00024054,2]
[421457925,1777702239000,-249.75,0.00024964,2]
[421457920,1777702239000,-556.155722,0.00024054,2]
[421457930,1777702239000,-1128.06584559,0.00025059,2]
[421457966,1777702239000,-741.0,0.00027137,2]
[421457968,1777702239000,-239.18009153,0.00027269,2]
[421457962,1777702239000,-123.92661539,0.00026796,2]
[421457958,1777702239000,-222.76979161,0.00026796,2]
[421457956,1777702239000,-50.2835537,0.00026796,2]
[421457944,1777702239000,-1128.06584559,0.00026164,2]
[421457942,1777702239000,-389.18,0.00025329,2]
[421457946,1777702239000,-2000.0,0.00026293,2]
[421457964,1777702239000,-346.696407,0.00026796,2]
[421457953,1777702239000,-296.4128533,0.00026796,2]
[421457951,1777702239000,-346.696407,0.00026796,2]
[421457938,1777702239000,-1378.42891064,0.00025289,2]
[421457936,1777702239000,-231.96,0.00025229,2]
[421457949,1777702239000,-1378.42891064,0.00026724,2]
[421457934,1777702239000,-5000.0,0.00025164,2]
[421457932,1777702239000,-196.57,0.00025072,2]
[421457940,1777702239000,-398.52,0.00025323,2]
[421458017,1777702240000,-1311.46,0.00027397,10]
[421458021,1777702240000,-741.0,0.00028205,3]
[421458022,1777702240000,-1128.06584559,0.00028374,2]
[421458019,1777702240000,-166.63,0.00028,2]
[421458026,1777702240000,-346.696403,0.00028496,7]
[421458023,1777702240000,-346.696407,0.00028496,7]
[421458018,1777702240000,-741.0,0.00027671,2]
[421458025,1777702240000,-346.696407,0.00028496,7]
[421458020,1777702240000,-1378.42891064,0.00028159,2]
[421458024,1777702240000,-346.696407,0.00028496,7]
[421458028,1777702240000,-150.0,0.00028596,2]
[421458027,1777702240000,-150.0,0.00028596,2]
[421458015,1777702240000,-1888.5,0.00027397,10]
[421458030,1777702240000,-150.0,0.00028596,2]
[421458016,1777702240000,-1573.75,0.00027397,10]
[421458005,1777702240000,-151.0,0.00027393,2]
[421458014,1777702240000,-1500.0,0.00027397,2]
[421458029,1777702240000,-150.0,0.00028596,2]
[421457999,1777702240000,-757.0,0.00023954,7]
[421458002,1777702240000,-151.0,0.00027392,2]
[421458000,1777702240000,-719.0,0.00026293,10]
[421458001,1777702240000,-888.88575406,0.00027269,2]
[421458003,1777702240000,-151.83039,0.00027392,2]
[421458011,1777702240000,-556.155722,0.00027393,2]
[421458004,1777702240000,-151.384206,0.00027393,2]
[421458006,1777702240000,-151.0,0.00027393,2]
[421458009,1777702240000,-151.0,0.00027393,2]
[421458013,1777702240000,-556.155722,0.00027393,2]
[421458010,1777702240000,-556.155722,0.00027393,2]
[421458012,1777702240000,-556.155722,0.00027393,2]
[421458008,1777702240000,-151.0,0.00027393,2]
[421458007,1777702240000,-151.0,0.00027393,2]
[421458037,1777702240000,-40.88738139,0.00028596,7]
[421458040,1777702240000,-240.42248,0.00028596,7]
[421458033,1777702240000,-151.0,0.00028596,7]
[421458049,1777702240000,-903.30642487,0.00028596,2]
[421458053,1777702240000,-1983.03712435,0.00028596,2]
[421458054,1777702240000,-430.0,0.00028596,2]
[421458057,1777702240000,-813.41053834,0.00028596,2]
[421458056,1777702240000,-201.12539818,0.00028596,2]
[421458058,1777702240000,-649.29216344,0.00028596,2]
[421458051,1777702240000,-430.0,0.00028596,2]
[421458055,1777702240000,-500.0,0.00028596,2]
[421458060,1777702240000,-292.05690389,0.00028596,2]
[421458059,1777702240000,-554.17190004,0.00028596,2]
[421458063,1777702240000,-365.70299583,0.00028596,2]
[421458062,1777702240000,-134.29700417,0.00028596,2]
[421458065,1777702240000,-17.71675104,0.00028596,2]
[421458032,1777702240000,-151.0,0.00028596,7]
[421458061,1777702240000,-137.94309611,0.00028596,2]
[421458048,1777702240000,-2218.0,0.00028596,2]
[421458064,1777702240000,-2200.28324896,0.00028596,2]
[421458052,1777702240000,-234.96287565,0.00028596,2]
[421458050,1777702240000,-1314.69357513,0.00028596,2]
[421458034,1777702240000,-151.0,0.00028596,7]
[421458036,1777702240000,-151.0,0.00028596,7]
[421458039,1777702240000,-151.0,0.00028596,7]
[421458038,1777702240000,-110.11261861,0.00028596,7]
[421458041,1777702240000,-151.0,0.00028596,7]
[421458035,1777702240000,-151.0,0.00028596,7]
[421458042,1777702240000,-265.994932,0.00028596,7]
[421458047,1777702240000,-96.32423105,0.00028596,7]
[421458044,1777702240000,-556.155722,0.00028596,7]
[421458043,1777702240000,-556.155722,0.00028596,7]
[421458031,1777702240000,-199.68923087,0.00028596,2]
[421458045,1777702240000,-556.155722,0.00028596,7]
[421458046,1777702240000,-459.83149281,0.00028596,7]
[421458105,1777702241000,-2218.0,0.00028596,2]
[421458097,1777702241000,-430.0,0.00028596,2]
[421458096,1777702241000,-2218.0,0.00028596,2]
[421458100,1777702241000,-2218.0,0.00028596,2]
[421458099,1777702241000,-2218.0,0.00028596,2]
[421458101,1777702241000,-430.0,0.00028596,2]
[421458102,1777702241000,-430.0,0.00028596,2]
[421458103,1777702241000,-500.0,0.00028596,2]
[421458104,1777702241000,-430.0,0.00028596,2]
[421458108,1777702241000,-500.0,0.00028596,2]
[421458098,1777702241000,-261.03457573,0.00028596,2]
[421458095,1777702241000,-430.0,0.00028596,2]
[421458113,1777702241000,-525.4586966,0.00028596,2]
[421458106,1777702241000,-500.0,0.00028596,2]
[421458111,1777702241000,-500.0,0.00028596,2]
[421458110,1777702241000,-500.0,0.00028596,2]
[421458109,1777702241000,-430.0,0.00028596,2]
[421458112,1777702241000,-2218.0,0.00028596,2]
[421458115,1777702241000,-2218.0,0.00028596,2]
[421458114,1777702241000,-430.0,0.00028596,2]
[421458117,1777702241000,-2218.0,0.00028596,2]
[421458127,1777702241000,-180.6,0.00028634,2]
[421458116,1777702241000,-430.0,0.00028596,2]
[421458094,1777702241000,-2218.0,0.00028596,2]
[421458122,1777702241000,-2218.0,0.00028596,2]
[421458107,1777702241000,-500.0,0.00028596,2]
[421458093,1777702241000,-430.0,0.00028596,2]
[421458076,1777702241000,-430.0,0.00028596,2]
[421458091,1777702241000,-209.47339354,0.00028596,2]
[421458118,1777702241000,-430.0,0.00028596,2]
[421458067,1777702241000,-150.0,0.00028596,2]
[421458066,1777702241000,-430.0,0.00028596,2]
[421458069,1777702241000,-2218.0,0.00028596,2]
[421458068,1777702241000,-500.0,0.00028596,2]
[421458071,1777702241000,-170.30281604,0.00028596,2]
[421458070,1777702241000,-259.69718396,0.00028596,2]
[421458072,1777702241000,-150.0,0.00028596,2]
[421458073,1777702241000,-122.56525168,0.00028596,2]
[421458075,1777702241000,-2218.0,0.00028596,2]
[421458074,1777702241000,-377.43474832,0.00028596,2]
[421458077,1777702241000,-158.65748984,0.00028596,2]
[421458078,1777702241000,-500.0,0.00028596,2]
[421458079,1777702241000,-2218.0,0.00028596,2]
[421458081,1777702241000,-150.0,0.00028596,2]
[421458080,1777702241000,-430.0,0.00028596,2]
[421458086,1777702241000,-2218.0,0.00028596,2]
[421458084,1777702241000,-430.0,0.00028596,2]
[421458082,1777702241000,-457.96334278,0.00028596,2]
[421458083,1777702241000,-2218.0,0.00028596,2]
[421458085,1777702241000,-150.0,0.00028596,2]
[421458087,1777702241000,-430.0,0.00028596,2]
[421458089,1777702241000,-2218.0,0.00028596,2]
[421458088,1777702241000,-150.0,0.00028596,2]
[421458090,1777702241000,-430.0,0.00028596,2]
[421458092,1777702241000,-2218.0,0.00028596,2]
[421458124,1777702241000,-2218.0,0.00028596,2]
[421458149,1777702241000,-202.06,0.00028949,7]
[421458120,1777702241000,-430.0,0.00028596,2]
[421458175,1777702241000,-150.0,0.00029534,2]
[421458155,1777702241000,-152.0,0.00029028,3]
[421458157,1777702241000,-202.06,0.00029043,7]
[421458167,1777702241000,-202.06,0.00029201,2]
[421458156,1777702241000,-180.6,0.00029043,7]
[421458159,1777702241000,-202.06,0.00029075,30]
[421458160,1777702241000,-180.6,0.00029106,2]
[421458164,1777702241000,-180.6,0.00029169,30]
[421458161,1777702241000,-202.06,0.00029106,2]
[421458162,1777702241000,-180.6,0.00029138,7]
[421458165,1777702241000,-202.06,0.00029169,30]
[421458166,1777702241000,-180.6,0.00029201,2]
[421458163,1777702241000,-202.06,0.00029138,7]
[421458168,1777702241000,-2000.0,0.00029214,2]
[421458171,1777702241000,-741.0,0.00029273,4]
[421458173,1777702241000,-1058.28883153,0.0002948,2]
[421458172,1777702241000,-284.629,0.00029273,22]
[421458170,1777702241000,-202.23,0.00029232,7]
[421458169,1777702241000,-180.79,0.00029232,7]
[421458174,1777702241000,-69.77701406,0.0002948,2]
[421458178,1777702241000,-150.0,0.00029973,5]
[421458177,1777702241000,-741.0,0.00029807,4]
[421458179,1777702241000,-604.56640103,0.00029999,2]
[421458176,1777702241000,-1378.42891064,0.00029595,2]
[421458119,1777702241000,-2218.0,0.00028596,2]
[421458147,1777702241000,-202.06,0.00028917,2]
[421458151,1777702241000,-180.6,0.0002898,30]
[421458158,1777702241000,-180.6,0.00029075,30]
[421458148,1777702241000,-180.6,0.00028949,7]
[421458125,1777702241000,-446.0,0.00028596,2]